bitfinex/quotes_SOLUSD_20240811
["timestamp","ask_amount","ask_price","bid_price","bid_amount"]
[1723348789238,11.07,155.94,155.9,6.4143]
[1723348789535,17.4819,155.96,155.91,6.4137]
[1723348790043,6.4123,155.95,155.9,6.4143]
[1723348791339,0.12549,155.95,155.9,6.4143]
[1723348791522,45.50196,155.95,155.9,6.4143]
[1723348792029,45.37647,155.95,155.9,7.6968576]
[1723348792235,0.12549,155.95,155.9,1.2825576]
[1723348792444,11.07,155.96,155.9,1.2825576]
[1723348792625,11.07,155.96,155.91,6.4139]
[1723348794319,17.482,155.96,155.91,6.4139]
[1723348794635,6.53789,155.95,155.88,16.0369]
[1723348794811,11.07,155.94,155.88,16.0369]
[1723348796748,11.07,155.94,155.9,6.4143]
[1723348798226,11.07,155.94,155.91,6.4137]
[1723348798425,11.07,155.94,155.92,1.28255036]
[1723348798740,0.25098,155.95,155.92,1.28255036]
[1723348798923,11.07,155.96,155.93,1.28255163]
[1723348799119,6.4107,155.99,155.93,6.4127]
[1723348799436,17.4807,155.99,155.94,1.28230906]
[1723348799744,17.4807,155.99,155.93,6.4127]
[1723348799933,6.4111,155.98,155.93,6.4127]
[1723348800645,11.07,155.97,155.93,6.4127]
[1723348801241,17.4815,155.97,155.92,6.4135]
[1723348801544,13.0929,156.01,155.93,1.28238457]
[1723348801545,19.503,156.01,155.93,1.28238457]
[1723348801731,20.0,156.0,155.93,12.35238457]
[1723348801940,20.0,156.0,155.94,22.4431]
[1723348802258,26.4102,156.0,155.95,6.4121]
[1723348802933,28.69171601,156.04,155.93,11.07]
[1723348803248,19.2911,156.09,155.97,11.07]
[1723348803555,11.07,156.07,156.02,22.4327]
[1723348804733,17.4774,156.07,156.02,16.0233]
[1723348804933,11.07,156.07,156.02,1.28159664]
[1723348805142,17.4774,156.07,156.02,7.69099664]
[1723348806346,6.68730724,156.12,156.06,6.4077]
[1723348806347,11.07,156.1,156.06,6.4077]
[1723348806545,6.4054,156.12,156.06,6.4077]
[1723348806546,11.07,156.12,156.06,6.4077]
[1723348807047,17.4753,156.12,156.06,6.4077]
[1723348807245,6.4059,156.11,156.05,6.4081]
[1723348807454,6.4062,156.1,156.04,22.4298]
[1723348808241,0.25098,156.09,156.04,22.4298]
[1723348808443,6.4057,156.11,156.05,6.4081]
[1723348808654,17.4753,156.12,156.06,6.4077]
[1723348808829,51.4058,156.11,156.06,6.4077]
[1723348809033,6.4058,156.11,156.06,6.4077]
[1723348810165,17.72628,156.12,156.07,1.28123377]
[1723348810344,17.72628,156.12,156.08,1.28115328]
[1723348811261,17.60079,156.12,156.09,1.28114689]
[1723348811581,16.72441054,156.15,156.1,1.28113171]
[1723348811582,17.4741,156.15,156.1,1.28113171]
[1723348811868,11.07,156.15,156.08,12.4707]
[1723348812045,11.07,156.13,156.08,6.0641]
[1723348812564,6.4054,156.12,156.07,38.7832]
[1723348812749,17.4749,156.13,156.08,6.4069]
[1723348812952,11.07,156.13,156.08,6.4069]
[1723348813870,11.07,156.13,156.09,6.4065]
[1723348817477,6.4046,156.14,156.09,6.4065]
[1723348817884,17.85057,156.15,156.09,6.4065]
[1723348818184,0.25098,156.14,156.09,6.4065]
[1723348818362,6.4037,156.16,156.1,23.36027841]
[1723348818569,6.4032,156.18,156.12,6.4053]
[1723348818761,6.4034,156.17,156.12,6.4053]
[1723348819265,6.4029,156.18,156.13,7.68564097]
[1723348819453,17.4729,156.18,156.13,7.68564097]
[1723348819654,6.4029,156.18,156.13,1.28074097]
[1723348819885,17.4729,156.18,156.13,1.28074097]
[1723348820089,11.07,156.18,156.13,7.68524097]
[1723348820373,11.07,156.18,156.14,6.4044]
[1723348820586,11.07,156.18,156.13,22.6909]
[1723348821191,11.07,156.2,156.15,6.404]
[1723348821380,11.07,156.25,156.14,27.0803]
[1723348821563,17.4705,156.24,156.19,6.4024]
[1723348821759,17.4705,156.24,156.18,6.4028]
[1723348822293,6.4005,156.24,156.19,22.6884]
[1723348822581,11.07,156.23,156.19,16.2861]
[1723348822790,11.07,156.21,156.15,22.8872]
[1723348823283,6.4013,156.22,156.17,6.4032]
[1723348823489,11.07,156.23,156.17,6.4032]
[1723348824386,6.4008,156.23,156.18,6.4028]
[1723348825282,11.07,156.24,156.19,6.4024]
[1723348825787,17.4705,156.24,156.17,6.4029]
[1723348825961,6.4008,156.23,156.17,6.4029]
[1723348826160,6.4004,156.24,156.18,6.4025]
[1723348826379,6.3999,156.26,156.2,6.402]
[1723348826565,11.07,156.26,156.21,7.68145534]
[1723348827093,17.4695,156.26,156.21,6.4014]
[1723348827386,11.07,156.26,156.21,6.4014]
[1723348827591,11.07,156.28,156.23,6.4004]
[1723348827764,11.07,156.28,156.24,1.27990907]
[1723348827959,11.07,156.28,156.22,16.2861]
[1723348828273,6.3999,156.26,156.22,16.2861]
[1723348828475,17.4692,156.27,156.22,16.2861]
[1723348828789,17.47,156.25,156.22,16.2861]
[1723348828967,6.4004,156.24,156.18,22.6889]
[1723348829160,6.4008,156.23,156.18,16.2861]
[1723348829387,11.07,156.24,156.18,16.2861]
[1723348830090,6.3996,156.26,156.18,16.2861]
[1723348830393,11.19549,156.27,156.19,16.0051]
[1723348830591,11.19549,156.27,156.2,1.27996796]
[1723348830769,17.59469,156.27,156.22,6.4008]
[1723348830963,17.59469,156.27,156.23,1.27996087]
[1723348831159,11.07,156.27,156.24,1.2799008]
[1723348831365,11.07,156.27,156.19,16.0051]
[1723348831563,0.12549,156.26,156.19,16.0051]
[1723348832267,11.07,156.25,156.19,16.0051]
[1723348832697,0.25098,156.24,156.19,22.4071]
[1723348833072,0.12549,156.24,156.19,17.28525623]
[1723348833276,11.07,156.25,156.21,6.4012]
[1723348833571,11.07,156.25,156.22,1.28003594]
[1723348833773,11.07,156.25,156.21,6.4012]
[1723348834990,11.07,156.25,156.22,6.4011]
[1723348835715,11.07,156.25,156.2,6.4017]
[1723348836318,6.3992,156.27,156.21,6.4014]
[1723348836608,11.19549,156.26,156.21,6.4014]
[1723348836782,17.59499,156.26,156.21,6.4014]
[1723348837792,6.52559,156.25,156.19,16.0051]
[1723348838709,0.12549,156.25,156.2,6.402]
[1723348838918,51.65108,156.25,156.2,6.402]
[1723348839508,11.19549,156.24,156.19,22.4075]
[1723348839722,0.12549,156.21,156.18,16.2861]
[1723348839885,11.07,156.2,156.15,29.014]
[1723348841100,11.07,156.16,156.14,16.2861]
[1723348841300,11.07,156.16,156.11,22.2274]
[1723348841301,11.07,156.16,156.11,28.6331]
[1723348844098,0.12549,156.17,156.14,6.4044]
[1723348844303,11.07,156.18,156.14,6.4044]
[1723348844608,11.07,156.18,156.13,6.4048]
[1723348844815,0.25098,156.17,156.13,6.4048]
[1723348845199,11.07,156.18,156.15,6.404]
[1723348845404,44.28,156.24,156.15,6.404]
[1723348845405,17.472,156.2,156.15,6.404]
[1723348845599,6.4026,156.19,156.14,22.4155]
[1723348845806,6.4026,156.19,156.14,16.0111]
[1723348846109,11.07,156.2,156.15,7.68464417]
[1723348846414,11.07,156.2,156.15,6.404]
[1723348846718,17.4721,156.2,156.15,6.404]
[1723348847315,6.52789,156.19,156.14,22.4155]
[1723348847518,17.473,156.18,156.14,16.0111]
[1723348847719,11.07,156.18,156.14,16.0111]
[1723348847950,11.07,156.18,156.14,22.4155]
[1723348848157,6.4008,156.24,156.19,6.4023]
[1723348848453,6.5457,156.28,156.17,16.008]
[1723348848454,11.07,156.23,156.17,16.008]
[1723348848613,13.0929,156.27,156.11,38.2421]
[1723348848614,11.07,156.21,156.16,6.4036]
[1723348849146,11.07,156.21,156.13,16.0113]
[1723348849329,11.07,156.21,156.18,6.4028]
[1723348849532,11.07,156.21,156.16,16.0089]
[1723348849533,11.07,156.21,156.16,22.4124]
[1723348849852,0.12549,156.2,156.16,22.4124]
[1723348850216,11.07,156.21,156.16,22.4124]
[1723348851647,11.07,156.21,156.17,6.4031]
[1723348851858,0.37647,156.22,156.12,16.0125]
[1723348852024,11.07,156.19,156.15,6.404]
[1723348853137,11.07,156.19,156.16,6.4036]
[1723348853448,11.19549,156.21,156.16,6.4036]
[1723348853626,0.12549,156.2,156.16,6.4036]
[1723348854144,45.37647,156.2,156.16,6.4035]
[1723348854328,0.25098,156.2,156.16,6.4035]
[1723348854532,11.07,156.24,156.18,16.007]
[1723348854834,11.07,156.24,156.2,6.4016]
[1723348855619,0.12549,156.23,156.18,16.007]
[1723348855835,0.25098,156.23,156.18,22.4098]
[1723348856122,0.12549,156.23,156.18,17.28726612]
[1723348856431,17.4704,156.24,156.19,6.4024]
[1723348856754,0.25098,156.23,156.18,22.4096]
[1723348857320,11.07,156.22,156.18,16.007]
[1723348857656,0.12549,156.21,156.16,15.4179]
[1723348857850,51.65258,156.21,156.16,15.4179]
[1723348858149,51.77807,156.21,156.16,21.8214]
[1723348858325,45.37647,156.21,156.17,6.4031]
[1723348861350,17.4704,156.24,156.19,6.4023]
[1723348861525,45.0,156.23,156.19,6.4023]
[1723348862233,17.4704,156.24,156.19,6.4023]
[1723348862541,11.07,156.24,156.19,6.4023]
[1723348863245,11.07,156.24,156.2,6.4018]
[1723348863832,11.07,156.24,156.18,6.4025]
[1723348864454,0.12549,156.23,156.18,6.4025]
[1723348864630,11.07,156.22,156.17,16.0078]
[1723348864826,17.4721,156.2,156.15,6.4037]
[1723348865760,11.07,156.2,156.15,6.4037]
[1723348866939,17.4729,156.18,156.13,16.0112]
[1723348867140,0.25098,156.17,156.13,16.0112]
[1723348867351,0.25098,156.17,156.13,22.4161]
[1723348867851,0.12549,156.17,156.14,6.4043]
[1723348868066,0.12549,156.19,156.13,16.0112]
[1723348868259,0.12549,156.2,156.18,6.4027]
[1723348868766,0.37647,156.2,156.16,6.4033]
[1723348869068,11.44647,156.2,156.15,22.4132]
[1723348869433,11.44647,156.2,156.15,16.0092]
[1723348869434,0.37647,156.2,156.15,16.0092]
[1723348870567,11.07,156.22,156.18,16.0071]
[1723348870770,0.12549,156.21,156.18,16.0071]
[1723348870977,0.25098,156.21,156.18,16.0071]
[1723348871151,11.07,156.22,156.19,6.4024]
[1723348871541,11.07,156.22,156.18,16.0071]
[1723348871882,6.65178,156.23,156.18,16.0071]
[1723348872043,0.25098,156.22,156.18,16.0071]
[1723348872241,0.25098,156.22,156.18,22.4099]
[1723348872667,0.25098,156.22,156.18,16.0071]
[1723348872870,0.25098,156.21,156.16,6.4036]
[1723348873169,0.25098,156.2,156.16,6.4036]
[1723348873472,0.12549,156.19,156.16,6.4036]
[1723348873846,0.25098,156.19,156.15,22.4141]
[1723348874046,0.25098,156.19,156.16,6.4036]
[1723348874281,0.12549,156.22,156.17,6.4031]
[1723348874481,45.50196,156.22,156.17,6.4031]
[1723348876152,45.50196,156.22,156.18,6.4027]
[1723348876850,51.90316,156.22,156.17,6.4032]
[1723348878267,45.50196,156.22,156.17,16.0072]
[1723348878467,45.50196,156.22,156.18,6.4028]
[1723348878671,45.50196,156.22,156.17,22.4104]
[1723348879753,51.90316,156.22,156.17,22.4104]
[1723348879943,0.12549,156.2,156.15,6.4038]
[1723348880142,45.50196,156.2,156.15,6.4038]
[1723348880343,45.50196,156.2,156.16,6.4035]
[1723348881376,45.50196,156.2,156.17,6.4031]
[1723348881554,28.4708,156.23,156.18,6.4028]
[1723348881756,45.50196,156.22,156.18,6.4028]
[1723348883851,45.50196,156.22,156.17,6.4032]
[1723348885095,45.50196,156.22,156.18,7.68314443]
[1723348886559,45.50196,156.22,156.18,6.4027]
[1723348887565,45.50196,156.22,156.17,6.4031]
[1723348889476,45.50196,156.22,156.18,6.4027]
[1723348890593,20.59295297,156.29,156.18,16.0061]
[1723348890767,22.07,156.28,156.21,6.4014]
[1723348891083,52.07138098,156.28,156.21,6.4014]
[1723348891274,11.53899269,156.27,156.21,6.4014]
[1723348891470,11.53871945,156.27,156.21,6.4014]
[1723348891682,11.53871945,156.27,156.2,6.4019]
[1723348891984,0.25098,156.26,156.2,6.4019]
[1723348892304,0.25098,156.25,156.2,6.4019]
[1723348892503,0.25098,156.24,156.21,1.28021038]
[1723348892791,0.25098,156.25,156.21,1.28021038]
[1723348892993,0.25098,156.25,156.21,7.68151038]
[1723348893287,0.25098,156.25,156.21,6.4013]
[1723348893681,0.12549,156.26,156.22,7.68121874]
[1723348893998,0.25098,156.26,156.22,7.68121874]
[1723348894284,17.4292,156.27,156.22,6.4011]
[1723348897099,11.03,156.25,156.21,16.0036]
[1723348897560,17.4301,156.25,156.21,16.0036]
[1723348897764,11.03,156.23,156.18,16.3056]
[1723348897984,6.4014,156.22,156.18,16.3056]
[1723348898160,0.12549,156.22,156.18,22.7083]
[1723348898363,11.03,156.23,156.2,6.4019]
[1723348898789,13.0929,156.29,156.2,16.0045]
[1723348899093,11.03,156.27,156.22,6.401]
[1723348899667,17.4293,156.27,156.22,6.401]
[1723348899985,17.4293,156.27,156.2,16.0045]
[1723348900199,11.03,156.27,156.23,6.4006]
[1723348900407,11.03,156.27,156.24,1.279944]
[1723348900576,11.03,156.27,156.23,6.4006]
[1723348901918,22.31098,156.28,156.23,6.4006]
[1723348902199,0.12549,156.27,156.23,6.4006]
[1723348902385,0.25098,156.27,156.22,6.4011]
[1723348912212,6.65028,156.27,156.21,6.4015]
[1723348912512,45.25098,156.27,156.21,6.4015]
[1723348913212,0.12549,156.26,156.21,6.4015]
[1723348913521,22.43647,156.26,156.21,6.4015]
[1723348913684,6.52549,156.25,156.2,22.4065]
[1723348913892,22.18549,156.24,156.2,16.0045]
[1723348914311,28.58589,156.24,156.19,6.4023]
[1723348914829,0.12549,156.21,156.14,16.3486]
[1723348914994,0.12549,156.21,156.16,6.4034]
[1723348915202,45.50196,156.21,156.18,6.4028]
[1723348915993,45.50196,156.21,156.17,6.4032]
[1723348916998,22.06,156.18,156.11,6.3181]
[1723348917197,28.4636,156.16,156.1,6.4059]
[1723348917523,22.06,156.16,156.11,6.4055]
[1723348918227,28.4645,156.14,156.08,16.0166]
[1723348918427,22.06,156.14,156.09,6.4064]
[1723348918638,22.06,156.12,156.08,16.0166]
[1723348919128,0.12549,156.11,156.07,6.4073]
[1723348919447,45.50196,156.11,156.07,6.4073]
[1723348919923,0.37647,156.11,156.04,16.0208]
[1723348920131,0.25098,156.11,156.08,6.4068]
[1723348920629,0.12549,156.11,156.08,6.4068]
[1723348920832,22.06,156.12,156.08,6.4068]
[1723348921332,22.06,156.12,156.07,16.0182]
[1723348921333,22.06,156.12,156.09,6.4065]
[1723348921504,0.37647,156.13,156.09,6.4065]
[1723348921706,0.12549,156.12,156.09,6.4065]
[1723348921900,0.25098,156.13,156.09,6.4065]
[1723348922097,0.12549,156.13,156.09,6.4065]
[1723348922297,6.78137,156.13,156.07,16.0182]
[1723348922500,67.18549,156.12,156.07,16.0182]
[1723348923516,67.18549,156.12,156.07,22.4251]
[1723348924734,73.59099,156.12,156.07,16.0182]
[1723348924920,0.25098,156.11,156.07,16.0182]
[1723348925932,11.05,156.1,156.03,16.0219]
[1723348926241,11.05,156.08,156.03,22.4305]
[1723348926446,11.05,156.08,156.04,6.4085]
[1723348927854,22.11,156.08,156.04,6.4085]
[1723348928022,0.12549,156.05,155.99,48.0788]
[1723348928216,0.12549,156.07,155.99,32.0528]
[1723348928420,35.2029,156.08,156.04,6.4086]
[1723348928421,22.11,156.08,156.04,6.4086]
[1723348928634,0.37647,156.07,156.04,6.4086]
[1723348928850,0.37647,156.07,156.03,6.409]
[1723348929146,22.36098,156.06,156.02,16.0234]
[1723348929353,0.12549,156.04,155.98,39.033]
[1723348929650,0.37647,156.04,155.99,6.4102]
[1723348930022,22.48647,156.04,155.99,6.4102]
[1723348930325,22.48647,156.04,155.98,16.0268]
[1723348930532,22.48647,156.04,156.0,6.4101]
[1723348930737,22.48647,156.04,156.01,6.4098]
[1723348930940,22.48647,156.04,156.0,6.4102]
[1723348931617,45.12549,156.03,155.99,6.4106]
[1723348932227,45.12549,156.03,156.0,6.4102]
[1723348932748,45.12549,156.03,155.98,16.0268]
[1723348933261,22.11,156.0,155.94,32.3982]
[1723348933424,45.37647,155.99,155.94,16.0311]
[1723348933625,45.37647,155.99,155.96,6.4117]
[1723348933945,45.37647,155.99,155.94,16.0311]
[1723348934330,45.37647,155.99,155.95,6.4121]
[1723348936438,45.37647,155.99,155.94,22.4438]
[1723348936747,0.12549,155.98,155.94,22.4438]
[1723348937827,0.12549,155.97,155.92,6.4135]
[1723348938174,45.37647,155.97,155.93,6.4131]
[1723348938348,0.12549,155.96,155.93,6.4131]
[1723348938550,0.12549,155.95,155.93,6.4131]
[1723348938730,0.37647,155.95,155.93,6.4131]
[1723348938931,0.37647,155.95,155.91,6.4138]
[1723348939649,0.37647,155.95,155.92,6.4135]
[1723348940034,0.37647,155.95,155.93,6.4131]
[1723348941169,0.12549,155.96,155.93,16.0325]
[1723348941340,0.50196,155.96,155.93,16.0325]
[1723348941846,0.50196,155.96,155.93,22.4456]
[1723348942561,0.50196,155.96,155.93,16.0325]
[1723348943635,22.61196,155.96,155.9,6.414]
[1723348943967,45.0,155.95,155.9,6.414]
[1723348944155,0.37647,155.94,155.9,6.414]
[1723348944466,0.37647,155.94,155.91,6.4137]
[1723348944669,0.12549,155.95,155.89,16.0359]
[1723348944840,0.50196,155.95,155.89,17.31856789]
[1723348945568,0.12549,155.94,155.89,16.0359]
[1723348945938,0.37647,155.95,155.92,6.4135]
[1723348946138,0.37647,155.95,155.93,6.4131]
[1723348946343,0.37647,155.95,155.91,6.4136]
[1723348946573,0.12549,155.94,155.9,6.4143]
[1723348947354,45.37647,155.95,155.91,6.4136]
[1723348947735,11.07,155.94,155.91,6.4136]
[1723348950971,0.37647,155.95,155.92,6.4133]
[1723348951261,11.07,155.97,155.89,27.1059]
[1723348951463,17.4815,155.97,155.92,6.4134]
[1723348952143,11.07,155.97,155.94,6.4126]
[1723348952766,11.07,155.97,155.93,6.4131]
[1723348953354,11.07,155.97,155.92,22.4472]
[1723348953355,45.0,155.96,155.92,22.4472]
[1723348953557,0.12549,155.95,155.93,6.413]
[1723348953745,13.78464289,156.03,155.97,6.4113]
[1723348954061,11.07,156.02,155.97,6.4113]
[1723348954673,17.4795,156.02,155.96,6.4118]
[1723348954843,17.4795,156.02,155.97,6.4113]
[1723348954844,6.4095,156.02,155.97,6.4113]
[1723348955044,13.0929,156.06,156.01,6.4098]
[1723348955272,11.07,156.05,156.01,6.4098]
[1723348955554,11.07,156.03,155.94,16.0309]
[1723348955758,22.13,156.02,155.96,6.4116]
[1723348955961,22.13,156.02,155.97,6.4114]
[1723348956241,22.13,156.04,155.99,6.4104]
[1723348956439,6.409,156.03,155.98,6.411]
[1723348956973,6.4124,155.95,155.89,6.4143]
[1723348957268,22.13,155.94,155.89,22.451]
[1723348958147,22.25549,155.92,155.87,0.8356711]
[1723348958678,22.25549,155.92,155.88,6.4151]
[1723348959956,22.25549,155.92,155.89,6.4147]
[1723348961392,22.25549,155.92,155.88,22.4529]
[1723348961604,0.12549,155.9,155.88,22.4529]
[1723348961778,0.12549,155.91,155.89,6.4147]
[1723348961978,0.12549,155.93,155.9,7.69675489]
[1723348962196,0.50196,155.93,155.9,6.4139]
[1723348962971,0.50196,155.93,155.88,22.4527]
[1723348963285,0.50196,155.93,155.89,6.4146]
[1723348965099,0.50196,155.93,155.88,22.4528]
[1723348965401,0.12549,155.91,155.87,0.8356711]
[1723348965701,45.50196,155.91,155.87,7.2510711]
[1723348966168,0.25098,155.91,155.87,7.2510711]
[1723348966367,22.13,155.92,155.87,7.2510711]
[1723348966876,22.13,155.92,155.89,6.4147]
[1723348967569,22.13,155.92,155.87,16.8744711]
[1723348967775,22.13,155.92,155.87,23.2899711]
[1723348967996,0.12549,155.91,155.87,16.8744711]
[1723348968194,75.50196,155.91,155.87,16.8744711]
[1723348968403,75.50196,155.91,155.87,23.2898711]
[1723348969631,75.50196,155.91,155.87,16.8744711]
[1723348969632,30.0,155.91,155.87,16.8744711]
[1723348969957,6.411,155.98,155.9,16.0353]
[1723348970161,22.13,155.97,155.91,1.28255616]
[1723348970302,22.13,155.97,155.9,16.0353]
[1723348970608,22.13,155.97,155.93,16.032]
[1723348970907,22.13,155.99,155.93,16.032]
[1723348971209,22.13,156.03,155.98,6.4109]
[1723348971383,30.0,155.99,155.98,6.4109]
[1723348971703,30.0,155.99,155.96,16.0293]
[1723348971905,22.13,156.01,155.96,16.0293]
[1723348972202,6.4094,156.03,155.96,16.0293]
[1723348972408,45.25098,156.0,155.96,16.0293]
[1723348972582,0.25098,155.99,155.96,22.4408]
[1723348972778,0.25098,155.99,155.96,16.0293]
[1723348972978,22.38098,155.99,155.96,16.0293]
[1723348973681,0.12549,155.98,155.94,6.4123]
[1723348973900,45.25098,155.98,155.92,16.0333]
[1723348974092,0.12549,155.97,155.92,16.0333]
[1723348974401,22.50647,155.97,155.92,16.0333]
[1723348974790,22.50647,155.97,155.94,6.4127]
[1723348975103,22.25549,155.97,155.94,6.4127]
[1723348975311,22.13,155.99,155.92,16.0333]
[1723348975512,22.13,155.99,155.94,6.4123]
[1723348976293,0.25098,155.98,155.94,6.4123]
[1723348977316,22.13,155.99,155.94,6.4123]
[1723348977516,22.13,155.99,155.95,6.4121]
[1723348978120,22.13,155.99,155.94,6.4126]
[1723348978495,0.12549,155.98,155.92,16.0333]
[1723348978699,45.50196,155.98,155.93,6.4131]
[1723348979007,0.37647,155.98,155.94,6.4126]
[1723348979323,45.37647,155.98,155.93,6.4129]
[1723348980198,45.37647,155.98,155.94,6.4127]
[1723348980808,45.37647,155.98,155.92,22.4464]
[1723348981709,45.37647,155.98,155.93,6.4129]
[1723348984597,0.25098,155.98,155.92,16.0333]
[1723348984804,22.13,155.99,155.92,16.0333]
[1723348985007,22.13,155.99,155.94,6.4124]
[1723348985832,28.5423,155.95,155.9,6.4142]
[1723348986126,28.5423,155.95,155.88,16.0374]
[1723348986127,22.13,155.91,155.88,16.0374]
[1723348986296,22.13,155.91,155.87,0.8356711]
[1723348987132,22.13,155.91,155.87,7.2511711]
[1723348987307,22.13,155.91,155.88,6.4151]
[1723348988124,0.25098,155.92,155.89,6.4147]
[1723348988325,22.13,155.93,155.89,6.4147]
[1723348989610,0.37647,155.94,155.89,6.4147]
[1723348989924,0.25098,155.93,155.89,6.4147]
[1723348990129,45.25098,155.94,155.9,6.4141]
[1723348990747,45.25098,155.94,155.89,6.4147]
[1723348991038,45.25098,155.94,155.9,6.4142]
[1723348991735,45.25098,155.94,155.89,6.4147]
[1723348992233,51.66368,155.94,155.89,6.4147]
[1723348992835,51.66368,155.94,155.88,6.4151]
[1723348993433,51.66368,155.94,155.89,6.4147]
[1723348993735,51.66368,155.94,155.87,24.57251413]
[1723348994035,51.66368,155.94,155.88,6.4149]
[1723348994419,22.13,155.93,155.87,2.11841413]
[1723348994630,6.4136,155.92,155.87,7.2511711]
[1723348995537,6.4136,155.92,155.87,0.8356711]
[1723348995833,22.50647,155.91,155.87,0.8356711]
[1723348996418,22.50647,155.91,155.87,7.2509711]
[1723348997633,0.12549,155.9,155.87,0.8356711]
[1723348999728,0.12549,155.9,155.87,7.2510711]
[1723349001441,0.12549,155.9,155.87,0.8356711]
[1723349002339,22.13,155.91,155.87,7.2509711]
[1723349002522,22.13,155.91,155.87,0.8356711]
[1723349003735,11.08,155.91,155.87,0.8356711]
[1723349004736,11.08,155.91,155.88,6.415]
[1723349005952,10.95170029,155.91,155.88,6.415]
[1723349007032,10.95170029,155.91,155.87,7.2511711]
[1723349010149,10.95170029,155.91,155.88,6.4149]
[1723349010350,10.95170029,155.91,155.89,6.4147]
[1723349010547,6.4127,155.94,155.88,6.4151]
[1723349010855,11.08,155.92,155.88,6.4151]
[1723349011348,11.08,155.94,155.89,16.3393]
[1723349011552,11.08,155.94,155.91,6.4139]
[1723349011749,11.08,155.94,155.9,6.4143]
[1723349012336,11.08,155.94,155.91,6.4137]
[1723349013232,11.08,155.96,155.92,6.4135]
[1723349013434,0.12549,155.97,155.93,1.28252616]
[1723349013641,0.12549,155.97,155.9,1.28242689]
[1723349014061,13.0929,156.03,155.93,11.08]
[1723349014233,11.08,156.04,156.01,6.4097]
[1723349014429,17.4887,156.04,155.99,16.0259]
[1723349014832,17.4887,156.04,155.99,22.4365]
[1723349015033,11.08,156.04,156.0,6.4101]
[1723349015438,17.4888,156.04,155.99,16.0259]
[1723349015764,28.5288,156.04,155.99,22.4365]
[1723349016260,22.12,156.04,155.99,16.0259]
[1723349016442,6.53369,156.05,155.99,22.4363]
[1723349016761,6.4086,156.04,155.99,16.0259]
[1723349017057,0.12549,156.05,155.99,22.4365]
[1723349017250,22.12,156.06,155.99,16.0259]
[1723349017469,22.12,156.02,155.95,22.3957]
[1723349017637,22.12,156.02,155.97,6.4114]
[1723349017638,28.5298,156.02,155.97,6.4114]
[1723349017842,22.12,156.02,155.98,6.411]
[1723349018046,22.12,156.02,155.96,6.4116]
[1723349018243,22.12,156.02,155.98,6.411]
[1723349018944,22.12,156.02,155.97,22.44]
[1723349020247,28.5294,156.02,155.97,22.44]
[1723349021558,0.25098,156.03,155.93,16.0319]
[1723349021559,28.5314,155.98,155.93,16.0319]
[1723349021865,22.12,155.98,155.94,6.4126]
[1723349022765,22.12,155.98,155.93,22.445]
[1723349023344,22.12,155.98,155.94,6.4126]
[1723349024356,28.5311,155.98,155.93,16.0319]
[1723349024551,22.12,155.98,155.93,22.4449]
[1723349025270,22.12,155.98,155.94,6.4127]
[1723349027159,22.12,156.01,155.96,22.4412]
[1723349027350,28.53,156.01,155.96,16.0296]
[1723349027550,22.12,155.99,155.96,16.0296]
[1723349028267,22.12,155.99,155.96,22.4414]